Department Family,Entity,Date,Expenses Type,Expense Area,Supplier,Transaction Number, Total ,
Department of Health,The Christie NHS Foundation Trust,25/01/2018,Drugs,011 Drugs,ALCURA UK LIMITED,0000570210," 98,238.52 ",
Department of Health,The Christie NHS Foundation Trust,12/01/2018,Drugs,011 Drugs,ALCURA UK LIMITED,0000570136," 791,896.77 ",
Department of Health,The Christie NHS Foundation Trust,18/01/2018,PET Scans - Nov 17,14 Christie Medical Physics,ALLIANCE MEDICAL LTD,0000571066," 73,530.00 ",
Department of Health,The Christie NHS Foundation Trust,18/01/2018,PET Scans - Oct 17,14 Christie Medical Physics,ALLIANCE MEDICAL LTD,0000567771," 185,082.00 ",
Department of Health,The Christie NHS Foundation Trust,18/01/2018,PET Scans - Nov 17,14 Christie Medical Physics,ALLIANCE MEDICAL LTD,0000569827," 195,546.00 ",
Department of Health,The Christie NHS Foundation Trust,11/01/2018,Drugs,14 Christie Medical Physics,ALLIANCE MEDICAL RADIOPHARMACY LIMITED,0000571851," 32,687.64 ",
Department of Health,The Christie NHS Foundation Trust,18/01/2018,Drugs,011 Drugs,BAXTER HEALTHCARE LTD,0000571845," 29,368.32 ",
Department of Health,The Christie NHS Foundation Trust,18/01/2018,Drugs,011 Drugs,BAXTER HEALTHCARE LTD,0000571848," 29,688.00 ",
Department of Health,The Christie NHS Foundation Trust,18/01/2018,Drugs,011 Drugs,BAXTER HEALTHCARE LTD,0000572070," 31,852.84 ",
Department of Health,The Christie NHS Foundation Trust,18/01/2018,Drugs,011 Drugs,BAXTER HEALTHCARE LTD,0000572062," 42,948.00 ",
Department of Health,The Christie NHS Foundation Trust,11/01/2018,Drugs,011 Drugs,BAXTER HEALTHCARE LTD,0000570063,"-280,784.40 ",
Department of Health,The Christie NHS Foundation Trust,25/01/2018,Drugs,011 Drugs,BAXTER HEALTHCARE LTD,0000572059," 309,473.47 ",
Department of Health,The Christie NHS Foundation Trust,02/01/2018,Drugs,011 Drugs,BAXTER HEALTHCARE LTD,0000573676," 336,207.60 ",
Department of Health,The Christie NHS Foundation Trust,18/01/2018,Drugs,011 Drugs,BAXTER HEALTHCARE LTD,0000571861," 390,116.00 ",
Department of Health,The Christie NHS Foundation Trust,11/01/2018,Drugs,011 Drugs,BAXTER HEALTHCARE LTD,0000570735," 394,259.29 ",
Department of Health,The Christie NHS Foundation Trust,18/01/2018,Drugs,011 Drugs,BAXTER HEALTHCARE LTD,0000572126," 399,735.40 ",
Department of Health,The Christie NHS Foundation Trust,25/01/2018,Drugs,011 Drugs,BAXTER HEALTHCARE LTD,0000572057," 401,327.96 ",
Department of Health,The Christie NHS Foundation Trust,11/01/2018,Drugs,011 Drugs,BAXTER HEALTHCARE LTD,0000570242," 409,150.74 ",
Department of Health,The Christie NHS Foundation Trust,11/01/2018,Drugs,011 Drugs,BAXTER HEALTHCARE LTD,0000570066," 412,111.09 ",
Department of Health,The Christie NHS Foundation Trust,11/01/2018,PET Scans - Nov 17,14 Christie Medical Physics,CENTRAL MCR  UNIV HOSP NHS FOUNDATION TR,0000570570," 123,326.00 ",
Department of Health,The Christie NHS Foundation Trust,25/01/2018,MRI Suite Relocation,18 Capital,CITY BUILD MANCHESTER LTD,0000571993," 89,838.96 ",
Department of Health,The Christie NHS Foundation Trust,25/01/2018,Medical Equipment,02 Cancer Networked Services,DRAEGER MEDICAL UK LIMITED,0000571860," 253,137.29 ",
Department of Health,The Christie NHS Foundation Trust,11/01/2018,Oncology Services Oct-17,02 Cancer Networked Services,EAST CHESHIRE NHS TRUST,0000570307,"-41,081.42 ",
Department of Health,The Christie NHS Foundation Trust,11/01/2018,Oncology Services Nov-17,02 Cancer Networked Services,EAST CHESHIRE NHS TRUST,0000570368," 43,097.75 ",
Department of Health,The Christie NHS Foundation Trust,11/01/2018,Oncology Services Dec-17,02 Cancer Networked Services,EAST CHESHIRE NHS TRUST,0000570371," 43,097.75 ",
Department of Health,The Christie NHS Foundation Trust,04/01/2018,Oncology Services Jul-17,02 Cancer Networked Services,EAST CHESHIRE NHS TRUST,0000559230," 43,580.58 ",
Department of Health,The Christie NHS Foundation Trust,18/01/2018,Oncology Services Apr-Oct-17,02 Cancer Networked Services,EAST CHESHIRE NHS TRUST,0000570367," 301,684.25 ",
Department of Health,The Christie NHS Foundation Trust,11/01/2018,Medical Equipment,14 Christie Medical Physics,ELEKTA  LTD,0000569631," 27,049.32 ",
Department of Health,The Christie NHS Foundation Trust,11/01/2018,Medical Equipment,18 Capital,ELEKTA  LTD,0000567985," 113,553.60 ",
Department of Health,The Christie NHS Foundation Trust,04/01/2018,Computer Equipment,18 Capital,HP INC.UK LIMITED,0000570607," 48,534.78 ",
Department of Health,The Christie NHS Foundation Trust,04/01/2018,Medical Equipment,18 Capital,IMAGING EQUIPMENT LTD,0000570216," 39,560.88 ",
Department of Health,The Christie NHS Foundation Trust,11/01/2018,Drugs,011 Drugs,LLOYDSPHARMACY CLINICAL HOMECARE,0000571199," 83,120.42 ",
Department of Health,The Christie NHS Foundation Trust,08/01/2018,Rates 17/18,08 Estates & Facilities,M/CR CITY COUNCIL (RATES) DD,0000571732," 71,296.00 ",
Department of Health,The Christie NHS Foundation Trust,11/01/2018,Proton Beam Development (PBT),18 Capital,MACE LTD,0000570982," 27,786.00 ",
Department of Health,The Christie NHS Foundation Trust,11/01/2018,Medical Equipment,01 Cancer Centre Services,MAQUET LIMITED,0000570989," 57,041.16 ",
Department of Health,The Christie NHS Foundation Trust,11/01/2018,Blood Products,02 Cancer Networked Services,NHS BLOOD AND TRANSPLANT,0000570364,"-29,841.86 ",
Department of Health,The Christie NHS Foundation Trust,11/01/2018,Blood Products,02 Cancer Networked Services,NHS BLOOD AND TRANSPLANT,0000565545," 31,284.49 ",
Department of Health,The Christie NHS Foundation Trust,11/01/2018,Blood Products,02 Cancer Networked Services,NHS BLOOD AND TRANSPLANT,0000563821," 35,088.70 ",
Department of Health,The Christie NHS Foundation Trust,15/01/2018,Blood Products,02 Cancer Networked Services,NHS BLOOD AND TRANSPLANT,0000573677," 178,854.08 ",
Department of Health,The Christie NHS Foundation Trust,15/01/2018,NHS Litigation (NHSLA),06 Finance & Business Development,NHS LITIGATION AUTHORITY,0000572372," 73,421.70 ",
Department of Health,The Christie NHS Foundation Trust,18/01/2018,Stock for all Wards & Departments,All Wards and Departments,NHS SUPPLY CHAIN,0000572245," 37,485.44 ",
Department of Health,The Christie NHS Foundation Trust,25/01/2018,Stock for all Wards & Departments,All Wards and Departments,NHS SUPPLY CHAIN,0000573040," 38,091.63 ",
Department of Health,The Christie NHS Foundation Trust,04/01/2018,Stock for all Wards & Departments,All Wards and Departments,NHS SUPPLY CHAIN,0000571170," 60,955.02 ",
Department of Health,The Christie NHS Foundation Trust,25/01/2018,Project Costs,18 Capital,PHILIPS HEALTHCARE,0000571958," 139,117.60 ",
Department of Health,The Christie NHS Foundation Trust,11/01/2018,E-Prescribing Project,01 Cancer Centre Services,SCC PLC,0000571006," 25,311.32 ",
Department of Health,The Christie NHS Foundation Trust,04/01/2018,Drugs,011 Drugs,TAMESIDE ACUTE SERVICES NHS FT,0000565330,"-44,130.77 ",
Department of Health,The Christie NHS Foundation Trust,18/01/2018,Patient Testing Service ,02 Cancer Networked Services,THE ANTHONY NOLAN BONE MARROW,0000571492," 34,955.00 ",
Department of Health,The Christie NHS Foundation Trust,25/01/2018,Drugs,011 Drugs,THE CHRISTIE PHARMACY LIMITED,0000573449," 2,136,551.00 ",
Department of Health,The Christie NHS Foundation Trust,11/01/2018,Anaesthetics SLA - Dec 17,01 Cancer Centre Services,UNI HOSP OF SOUTH MANCHESTER NHS FT,0000570920," 27,148.17 ",
Department of Health,The Christie NHS Foundation Trust,18/01/2018,Clinical Nurse Recharge Oct-Dec-17,01 Cancer Centre Services,UNI HOSP OF SOUTH MANCHESTER NHS FT,0000571091," 28,211.69 ",
Department of Health,The Christie NHS Foundation Trust,11/01/2018,Critical Care - Dec-17,01 Cancer Centre Services,UNI HOSP OF SOUTH MANCHESTER NHS FT,0000570919," 29,638.25 ",
Department of Health,The Christie NHS Foundation Trust,11/01/2018,Research Project,17 Research & Development,UNIVERSITY OF MANCHESTER,0000571148," 34,200.04 ",
Department of Health,The Christie NHS Foundation Trust,04/01/2018,Energy Contract - Nov-17,08 Estates & Facilities,VEOLIA ENERGY &UTILITY SERVICES UK PLC,0000570238," 233,426.76 ",
Department of Health,The Christie NHS Foundation Trust,04/01/2018,Wayfinder App & SLA,04a Corporate Development,WAYFINDER UK LTD,0000569500," 27,360.00 ",
Department of Health,The Christie NHS Foundation Trust,04/01/2018,Christie @ Wigan - Dec-17,02 Cancer Networked Services,WRIGHTINGTON WIGAN AND LEIGH NHS FT,0000570564," 231,448.00 ",
